[Event "120th Taflfelag Reykjavik-A 2020"]
[Site "Reykjavik"]
[Date "2020.09.27"]
[Round "7.2"]
[White "Gretarsson, Helgi Ass"]
[Black "Thorfinnsson, Bragi"]
[Result "1-0"]
[ECO "D76"]
[WhiteElo "2401"]
[BlackElo "2427"]
[Annotator "ChessBase"]
[PlyCount "91"]
[EventDate "2020.09.13"]
[EventType "tourn"]
[EventCountry "ISL"]
[SourceTitle "playchess.com"]
[Source "ChessBase"]
[SourceQuality "1"]
[TimeControl "40/5400+15:1800+30"]

1. Nf3 {[%emt 0:00:29]} Nf6 {[%emt 0:06:37]} 2. c4 {[%emt 0:00:25]} g6 {[%emt 0:00:14]} 3. Nc3 {[%emt 0:00:20]} Bg7 {[%emt 0:00:22]} 4. g3 {[%emt 0:06:21]} O-O {[%emt 0:04:26]} 5. Bg2 {[%emt 0:01:37]} d5 {[%emt 0:01:18]} 6. d4 {[%emt 0:14:35]} Nc6 {[%emt 0:03:16]} 7. cxd5 {[%emt 0:05:12]} Nxd5 {[%emt 0:00:11]} 8. O-O {[%emt 0:00:00]} Nb6 {[%emt 0:01:40]} 9. e3 {[%emt 0:00:21]} Re8 {[%emt 0:01:27]} 10. d5 {[%emt 0:01:41]} Nb4 {[%emt 0:05:32]} 11. e4 {[%emt 0:00:23]} e6 {[%emt 0:04:10]} 12. Qb3 {[%emt 0:08:33]} Na6 {[%emt 0:12:00]} 13. Bg5 {[%emt 0:00:36]} Qd7 {[%emt 0:04:37]} 14. Rad1 {[%emt 0:05:58]} exd5 {[%emt 0:03:17]} 15. exd5 {[%emt 0:00:00]} Qg4 {[%emt 0:00:15]} 16. h3 {[%emt 0:03:10]} Qc4 {[%emt 0:00:29]} 17. Nd2 {[%emt 0:06:35]} Qxb3 {[%emt 0:02:42]} 18. axb3 {[%emt 0:01:14]} h6 {[%emt 0:03:38]} 19. Be3 {[%emt 0:00:19]} Bd7 {[%emt 0:02:58]} 20. Nc4 {[%emt 0:06:52]} Nxc4 {[%emt 0:06:49]} 21. bxc4 {[%emt 0:00:00]} Bxc3 {[%emt 0:00:20]} 22. bxc3 {[%emt 0:00:00]} Rxe3 {[%emt 0:00:04]} 23. fxe3 {[%emt 0:00:00]} Nc5 {[%emt 0:00:15]} 24. e4 {[%emt 0:08:12]} a5 {[%emt 0:02:22]} 25. e5 {[%emt 0:17:58]} a4 {[%emt 0:05:24]} 26. g4 {[%emt 0:00:48]} Kg7 {[%emt 0:02:48]} 27. Rfe1 {[%emt 0:01:08]} Re8 {[%emt 0:01:05]} 28. Re2 {[%emt 0:02:37]} Rh8 {[%emt 0:04:47]} 29. Bf3 {[%emt 0:00:54]} b6 {[%emt 0:02:51]} 30. Kg2 {[%emt 0:00:13]} Re8 {[%emt 0:02:30]} 31. Kf2 {[%emt 0:00:09]} h5 {[%emt 0:02:57]} 32. gxh5 {[%emt 0:00:14]} gxh5 {[%emt 0:00:00]} 33. Bxh5 {[%emt 0:00:43]} Rh8 {[%emt 0:01:54]} 34. Bg4 {[%emt 0:00:00]} Bxg4 {[%emt 0:00:51]} 35. hxg4 {[%emt 0:00:00]} Rh2+ {[%emt 0:01:23]} 36. Kf3 {[%emt 0:00:00]} Rh3+ {[%emt 0:02:34]} 37. Kg2 {[%emt 0:00:00]} Rh8 {[%emt 0:00:35]} 38. Kg3 {[%emt 0:01:16]} Ra8 {[%emt 0:00:03]} 39. e6 {[%emt 0:00:01]} fxe6 {[%emt 0:00:20]} 40. dxe6 {[%emt 0:00:00]} Re8 {[%emt 0:00:00]} 41. e7 {[%emt 0:15:58]} a3 {[%emt 0:17:33]} 42. Ra1 {[%emt 0:01:19]} Kf7 {[%emt 0:01:04]} 43. Rxa3 {[%emt 0:00:09]} Rxe7 {[%emt 0:01:38]} 44. Rxe7+ {[%emt 0:00:08]} Kxe7 {[%emt 0:00:12]} 45. Kh4 {[%emt 0:05:32]} Ne4 {[%emt 0:02:33]} 46. Ra7 {[%emt 0:02:36]} 1-0

[Event "120th Taflfelag Reykjavik-A 2020"]
[Site "Reykjavik"]
[Date "2020.09.27"]
[Round "7.3"]
[White "Sigfusson, Sigurdur"]
[Black "Einarsson, Halldor Gretar"]
[Result "1-0"]
[ECO "B33"]
[WhiteElo "2276"]
[BlackElo "2258"]
[Annotator "ChessBase"]
[PlyCount "79"]
[EventDate "2020.09.13"]
[EventType "tourn"]
[EventCountry "ISL"]
[SourceTitle "playchess.com"]
[Source "ChessBase"]
[SourceQuality "1"]
[TimeControl "40/5400+15:1800+30"]

1. e4 {[%emt 0:00:00]} c5 {[%emt 0:00:00]} 2. Nf3 {[%emt 0:00:00]} Nc6 {[%emt 0:00:00]} 3. d4 {[%emt 0:00:00]} cxd4 {[%emt 0:00:00]} 4. Nxd4 {[%emt 0:00:00]} Nf6 {[%emt 0:00:00]} 5. Nc3 {[%emt 0:00:00]} e5 {[%emt 0:00:00]} 6. Ndb5 {[%emt 0:00:00]} d6 {[%emt 0:00:00]} 7. Bg5 {[%emt 0:00:00]} a6 {[%emt 0:00:00]} 8. Na3 {[%emt 0:00:00]} b5 {[%emt 0:00:00]} 9. Bxf6 {[%emt 0:00:00]} gxf6 {[%emt 0:00:00]} 10. Nd5 {[%emt 0:00:00]} f5 {[%emt 0:00:00]} 11. Bd3 {[%emt 0:00:00]} Be6 {[%emt 0:00:01]} 12. c3 {[%emt 0:00:00]} Bxd5 {[%emt 0:01:46]} 13. exd5 {[%emt 0:00:00]} Ne7 {[%emt 0:00:04]} 14. Nxb5 {[%emt 0:00:00]} Bg7 {[%emt 0:00:24]} 15. Na3 {[%emt 0:00:00]} O-O {[%emt 0:03:45]} 16. O-O {[%emt 0:00:00]} e4 {[%emt 0:00:31]} 17. Bc2 {[%emt 0:02:34]} Qc8 {[%emt 0:02:59]} 18. Qd2 {[%emt 0:11:47]} Ng6 {[%emt 0:07:12]} 19. Kh1 {[%emt 0:08:56]} Rb8 {[%emt 0:12:11]} 20. Bb3 {[%emt 0:03:14]} a5 {[%emt 0:23:07]} 21. f3 {[%emt 0:07:14]} Re8 {[%emt 0:08:02]} 22. Rae1 {[%emt 0:12:37]} Re7 {[%emt 0:08:06]} 23. fxe4 {[%emt 0:09:14]} fxe4 {[%emt 0:00:00]} 24. Nc4 {[%emt 0:00:17]} a4 {[%emt 0:04:56]} 25. Nxd6 {[%emt 0:00:20]} Qd7 {[%emt 0:00:17]} 26. Nxe4 {[%emt 0:06:19]} axb3 {[%emt 0:00:40]} 27. Nc5 {[%emt 0:00:00]} Qb5 {[%emt 0:08:24]} 28. Nxb3 {[%emt 0:00:12]} Rd7 {[%emt 0:00:07]} 29. Rd1 {[%emt 0:02:03]} Rbd8 {[%emt 0:00:02]} 30. Qf2 {[%emt 0:00:07]} Ne5 {[%emt 0:00:41]} 31. Rd4 {[%emt 0:01:32]} Nc4 {[%emt 0:04:49]} 32. Rg4 {[%emt 0:01:47]} Ne3 {[%emt 0:02:33]} 33. Rxg7+ {[%emt 0:00:00]} Kxg7 {[%emt 0:00:00]} 34. Qf6+ {[%emt 0:00:06]} Kg8 {[%emt 0:02:09]} 35. Qg5+ {[%emt 0:04:25]} Kf8 {[%emt 0:00:31]} 36. Qh6+ {[%emt 0:00:00]} Ke8 {[%emt 0:02:28]} 37. Qxe3+ {[%emt 0:00:17]} Re7 {[%emt 0:00:00]} 38. Qf2 {[%emt 0:00:50]} Qxd5 {[%emt 0:00:19]} 39. Nd4 {[%emt 0:00:39]} Qxa2 {[%emt 0:01:14]} 40. Nc6 {[%emt 0:25:30]} 1-0

[Event "120th Taflfelag Reykjavik-A 2020"]
[Site "Reykjavik"]
[Date "2020.09.27"]
[Round "7.4"]
[White "Kjartansson, David"]
[Black "Bjornsson, Sigurbjorn"]
[Result "1-0"]
[ECO "E02"]
[WhiteElo "2338"]
[BlackElo "2357"]
[Annotator "ChessBase"]
[PlyCount "137"]
[EventDate "2020.09.13"]
[EventType "tourn"]
[EventCountry "ISL"]
[SourceTitle "playchess.com"]
[Source "ChessBase"]
[SourceQuality "1"]
[TimeControl "40/5400+15:1800+30"]

1. d4 {[%emt 0:00:00]} Nf6 {[%emt 0:00:00]} 2. c4 {[%emt 0:00:00]} e6 {[%emt 0:00:00]} 3. Nf3 {[%emt 0:00:00]} d5 {[%emt 0:00:00]} 4. g3 {[%emt 0:00:57]} dxc4 {[%emt 0:02:39]} 5. Qa4+ {[%emt 0:01:03]} Bd7 {[%emt 0:00:12]} 6. Qxc4 {[%emt 0:00:00]} Bc6 {[%emt 0:00:18]} 7. Bg2 {[%emt 0:00:00]} Be7 {[%emt 0:00:40]} 8. O-O {[%emt 0:00:00]} O-O {[%emt 0:00:37]} 9. Bf4 {[%emt 0:08:33]} Nbd7 {[%emt 0:03:47]} 10. Nc3 {[%emt 0:09:16]} Nb6 {[%emt 0:00:38]} 11. Qd3 {[%emt 0:00:17]} Nbd5 {[%emt 0:00:37]} 12. Nxd5 {[%emt 0:12:38]} Bxd5 {[%emt 0:01:50]} 13. Rac1 {[%emt 0:01:22]} Rc8 {[%emt 0:02:38]} 14. a3 {[%emt 0:03:45]} c5 {[%emt 0:02:27]} 15. dxc5 {[%emt 0:00:02]} Rxc5 {[%emt 0:03:40]} 16. Rxc5 {[%emt 0:01:44]} Bxc5 {[%emt 0:00:00]} 17. Be5 {[%emt 0:03:44]} Be7 {[%emt 0:01:41]} 18. Rc1 {[%emt 0:06:22]} Bc6 {[%emt 0:04:52]} 19. Ne1 {[%emt 0:17:56]} Bxg2 {[%emt 0:03:32]} 20. Kxg2 {[%emt 0:00:13]} Qa8 {[%emt 0:08:30]} 21. Nf3 {[%emt 0:05:32]} h6 {[%emt 0:05:59]} 22. Rc4 {[%emt 0:01:09]} Rc8 {[%emt 0:02:04]} 23. Rd4 {[%emt 0:02:02]} b6 {[%emt 0:01:28]} 24. b4 {[%emt 0:02:39]} Qc6 {[%emt 0:02:39]} 25. Bd6 {[%emt 0:04:43]} Bxd6 {[%emt 0:05:48]} 26. Rxd6 {[%emt 0:00:00]} Qe4 {[%emt 0:02:06]} 27. Qxe4 {[%emt 0:02:14]} Nxe4 {[%emt 0:00:00]} 28. Rd7 {[%emt 0:00:03]} a5 {[%emt 0:06:23]} 29. Ne5 {[%emt 0:00:59]} Rc2 {[%emt 0:04:00]} 30. Kf1 {[%emt 0:08:32]} Rc1+ {[%emt 0:00:50]} 31. Kg2 {[%emt 0:00:00]} Rc2 {[%emt 0:00:00]} 32. Kf1 {[%emt 0:00:16]} Nd2+ {[%emt 0:05:46]} 33. Ke1 {[%emt 0:00:15]} Nb1 {[%emt 0:00:17]} 34. f4 {[%emt 0:01:25]} f6 {[%emt 0:02:26]} 35. Rd8+ {[%emt 0:00:21]} Kh7 {[%emt 0:00:00]} 36. Nd7 {[%emt 0:00:00]} Nxa3 {[%emt 0:02:25]} 37. bxa5 {[%emt 0:00:00]} bxa5 {[%emt 0:00:00]} 38. Nf8+ {[%emt 0:00:00]} Kg8 {[%emt 0:00:00]} 39. Nxe6+ {[%emt 0:00:00]} Kf7 {[%emt 0:00:43]} 40. f5 {[%emt 0:00:00]} Ke7 {[%emt 0:00:00]} 41. Ra8 {[%emt 0:16:07]} Ra2 {[%emt 0:19:09]} 42. Ra7+ {[%emt 0:02:42]} Kd6 {[%emt 0:00:41]} 43. Ra6+ {[%emt 0:00:18]} Ke7 {[%emt 0:04:11]} 44. Kf2 {[%emt 0:01:02]} Nb5 {[%emt 0:01:51]} 45. Nxg7 {[%emt 0:01:27]} a4 {[%emt 0:05:14]} 46. Nh5 {[%emt 0:02:17]} Nd4 {[%emt 0:04:49]} 47. Nf4 {[%emt 0:01:00]} a3 {[%emt 0:03:30]} 48. Nd5+ {[%emt 0:00:19]} Kf7 {[%emt 0:04:27]} 49. Ra7+ {[%emt 0:02:16]} Kf8 {[%emt 0:00:25]} 50. Nc3 {[%emt 0:01:38]} Ra1 {[%emt 0:00:09]} 51. g4 {[%emt 0:00:42]} Nc2 {[%emt 0:01:52]} 52. Ra6 {[%emt 0:01:46]} Kg7 {[%emt 0:00:46]} 53. Ra7+ {[%emt 0:01:20]} Kf8 {[%emt 0:00:04]} 54. Kf3 {[%emt 0:01:05]} Rh1 {[%emt 0:00:55]} 55. Nd5 {[%emt 0:01:16]} Rxh2 {[%emt 0:06:30]} 56. Nxf6 {[%emt 0:00:36]} Nd4+ {[%emt 0:01:02]} 57. Kg3 {[%emt 0:02:08]} Rh1 {[%emt 0:00:27]} 58. Rxa3 {[%emt 0:01:19]} Nxe2+ {[%emt 0:00:22]} 59. Kg2 {[%emt 0:00:13]} Rd1 {[%emt 0:00:58]} 60. Ra7 {[%emt 0:00:17]} Nf4+ {[%emt 0:00:27]} 61. Kg3 {[%emt 0:00:21]} Nd5 {[%emt 0:00:28]} 62. Nxd5 {[%emt 0:00:19]} Rxd5 {[%emt 0:00:06]} 63. Rh7 {[%emt 0:00:10]} Rd6 {[%emt 0:00:10]} 64. Kh4 {[%emt 0:00:10]} Kg8 {[%emt 0:00:12]} 65. Rb7 {[%emt 0:00:07]} Rc6 {[%emt 0:00:40]} 66. Kh5 {[%emt 0:00:10]} Ra6 {[%emt 0:00:42]} 67. Re7 {[%emt 0:00:16]} Ra4 {[%emt 0:01:13]} 68. Re6 {[%emt 0:00:15]} Rb4 {[%emt 0:00:36]} 69. Rxh6 {[%emt 0:00:10]} 1-0

[Event "120th Taflfelag Reykjavik-A 2020"]
[Site "Reykjavik"]
[Date "2020.09.27"]
[Round "7.5"]
[White "Stefansson, Vignir Vatnar"]
[Black "Thorhallsson, Simon"]
[Result "1/2-1/2"]
[ECO "D30"]
[WhiteElo "2301"]
[BlackElo "2215"]
[Annotator "ChessBase"]
[PlyCount "81"]
[EventDate "2020.09.13"]
[EventType "tourn"]
[EventCountry "ISL"]
[SourceTitle "playchess.com"]
[Source "ChessBase"]
[SourceQuality "1"]
[TimeControl "40/5400+15:1800+30"]

1. d4 {[%emt 0:00:36]} Nf6 {[%emt 0:00:44]} 2. Nf3 {[%emt 0:00:00]} e6 {[%emt 0:00:14]} 3. e3 {[%emt 0:00:00]} d5 {[%emt 0:00:44]} 4. c4 {[%emt 0:00:00]} a6 {[%emt 0:04:20]} 5. a3 {[%emt 0:00:14]} dxc4 {[%emt 0:02:27]} 6. Bxc4 {[%emt 0:00:00]} c5 {[%emt 0:00:46]} 7. dxc5 {[%emt 0:00:00]} Qxd1+ {[%emt 0:00:07]} 8. Kxd1 {[%emt 0:00:00]} Bxc5 {[%emt 0:00:00]} 9. b4 {[%emt 0:00:00]} Bd6 {[%emt 0:01:49]} 10. Ke2 {[%emt 0:00:00]} b5 {[%emt 0:04:30]} 11. Bd3 {[%emt 0:03:16]} Bb7 {[%emt 0:00:20]} 12. Bb2 {[%emt 0:00:51]} Nbd7 {[%emt 0:04:07]} 13. Nbd2 {[%emt 0:00:35]} Ke7 {[%emt 0:01:16]} 14. e4 {[%emt 0:01:18]} e5 {[%emt 0:01:20]} 15. Nh4 {[%emt 0:02:07]} g6 {[%emt 0:00:20]} 16. f3 {[%emt 0:03:27]} Nb6 {[%emt 0:03:24]} 17. f4 {[%emt 0:01:35]} Nfd7 {[%emt 0:01:16]} 18. Nhf3 {[%emt 0:03:43]} f6 {[%emt 0:01:37]} 19. fxe5 {[%emt 0:00:00]} Nxe5 {[%emt 0:15:29]} 20. Bxe5 {[%emt 0:01:07]} Bxe5 {[%emt 0:00:49]} 21. Nxe5 {[%emt 0:00:00]} fxe5 {[%emt 0:00:00]} 22. Nb3 {[%emt 0:00:10]} Rad8 {[%emt 0:07:46]} 23. Rac1 {[%emt 0:02:22]} Na4 {[%emt 0:03:10]} 24. Nc5 {[%emt 0:17:49]} Nxc5 {[%emt 0:01:45]} 25. Rxc5 {[%emt 0:00:00]} Rc8 {[%emt 0:05:26]} 26. Rhc1 {[%emt 0:00:48]} Rxc5 {[%emt 0:00:16]} 27. Rxc5 {[%emt 0:00:32]} Kd6 {[%emt 0:00:40]} 28. a4 {[%emt 0:00:04]} Bc6 {[%emt 0:03:37]} 29. axb5 {[%emt 0:01:07]} axb5 {[%emt 0:00:00]} 30. Ke3 {[%emt 0:00:04]} Rb8 {[%emt 0:29:11]} 31. h4 {[%emt 0:01:09]} h6 {[%emt 0:00:00]} 32. g4 {[%emt 0:01:28]} Rb7 {[%emt 0:00:00]} 33. g5 {[%emt 0:00:21]} h5 {[%emt 0:00:00]} 34. Be2 {[%emt 0:05:25]} Rb8 {[%emt 0:00:00]} 35. Bf1 {[%emt 0:01:29]} Rb7 {[%emt 0:00:00]} 36. Bd3 {[%emt 0:01:46]} Rb8 {[%emt 0:00:00]} 37. Rc1 {[%emt 0:00:34]} Rf8 {[%emt 0:00:00]} 38. Rd1 {[%emt 0:01:36]} Kc7 {[%emt 0:00:00]} 39. Rc1 {[%emt 0:00:55]} Kd6 {[%emt 0:00:00]} 40. Rd1 {[%emt 0:00:00]} Kc7 {[%emt 0:00:00]} 41. Rc1 {[%emt 0:16:53]} 1/2-1/2

[Event "120th Taflfelag Reykjavik-A 2020"]
[Site "Reykjavik"]
[Date "2020.10.01"]
[Round "8.1"]
[White "Gretarsson, Hjorvar Steinn"]
[Black "Thorhallsson, Simon"]
[Result "1-0"]
[ECO "A77"]
[WhiteElo "2579"]
[BlackElo "2215"]
[Annotator "ChessBase"]
[PlyCount "57"]
[EventDate "2020.09.13"]
[EventType "tourn"]
[EventCountry "ISL"]
[SourceTitle "playchess.com"]
[Source "ChessBase"]
[SourceQuality "1"]
[TimeControl "40/5400+15:1800+30"]

1. Nf3 {[%emt 0:00:00]} Nf6 {[%emt 0:00:49]} 2. c4 {[%emt 0:00:00]} e6 {[%emt 0:06:32]} 3. d4 {[%emt 0:00:00]} c5 {[%emt 0:00:49]} 4. d5 {[%emt 0:00:00]} d6 {[%emt 0:00:17]} 5. Nc3 {[%emt 0:00:00]} exd5 {[%emt 0:00:00]} 6. cxd5 {[%emt 0:00:00]} g6 {[%emt 0:00:00]} 7. Nd2 {[%emt 0:00:00]} Bg7 {[%emt 0:05:24]} 8. e4 {[%emt 0:00:00]} O-O {[%emt 0:00:49]} 9. Be2 {[%emt 0:00:00]} Re8 {[%emt 0:01:16]} 10. O-O {[%emt 0:00:00]} a6 {[%emt 0:04:31]} 11. a4 {[%emt 0:00:00]} Nbd7 {[%emt 0:00:00]} 12. f3 {[%emt 0:16:31]} Nh5 {[%emt 0:06:03]} 13. f4 {[%emt 0:06:23]} Bd4+ {[%emt 0:02:44]} 14. Kh1 {[%emt 0:00:00]} Ng7 {[%emt 0:00:41]} 15. Nf3 {[%emt 0:15:35]} Bxc3 {[%emt 0:03:18]} 16. bxc3 {[%emt 0:00:00]} Rxe4 {[%emt 0:00:19]} 17. Bd3 {[%emt 0:02:42]} Re8 {[%emt 0:00:27]} 18. f5 {[%emt 0:03:00]} gxf5 {[%emt 0:03:40]} 19. Bh6 {[%emt 0:17:38]} Nf8 {[%emt 0:06:46]} 20. Rb1 {[%emt 0:05:25]} Ng6 {[%emt 0:02:50]} 21. Qd2 {[%emt 0:03:34]} f6 {[%emt 0:04:00]} 22. Qc2 {[%emt 0:04:18]} Re7 {[%emt 0:05:46]} 23. Nd2 {[%emt 0:02:46]} Ne5 {[%emt 0:13:19]} 24. Bxg7 {[%emt 0:00:12]} Rxg7 {[%emt 0:00:05]} 25. Bxf5 {[%emt 0:00:00]} Qe8 {[%emt 0:02:04]} 26. Ne4 {[%emt 0:00:57]} Bxf5 {[%emt 0:03:19]} 27. Rxf5 {[%emt 0:00:23]} Ng4 {[%emt 0:00:41]} 28. h3 {[%emt 0:00:57]} Re7 {[%emt 0:00:39]} 29. Re1 {[%emt 0:00:29]} 1-0

[Event "120th Taflfelag Reykjavik-A 2020"]
[Site "Reykjavik"]
[Date "2020.10.01"]
[Round "8.2"]
[White "Bjornsson, Sigurbjorn"]
[Black "Stefansson, Vignir Vatnar"]
[Result "0-1"]
[ECO "B33"]
[WhiteElo "2357"]
[BlackElo "2301"]
[Annotator "ChessBase"]
[PlyCount "74"]
[EventDate "2020.09.13"]
[EventType "tourn"]
[EventCountry "ISL"]
[SourceTitle "playchess.com"]
[Source "ChessBase"]
[SourceQuality "1"]
[TimeControl "40/5400+15:1800+30"]

1. e4 {[%emt 0:00:00]} c5 {[%emt 0:00:00]} 2. Nf3 {[%emt 0:00:00]} Nc6 {[%emt 0:00:00]} 3. d4 {[%emt 0:00:00]} cxd4 {[%emt 0:00:00]} 4. Nxd4 {[%emt 0:00:00]} Nf6 {[%emt 0:00:00]} 5. Nc3 {[%emt 0:00:00]} e5 {[%emt 0:00:00]} 6. Ndb5 {[%emt 0:00:00]} d6 {[%emt 0:00:00]} 7. Bg5 {[%emt 0:00:00]} a6 {[%emt 0:00:00]} 8. Na3 {[%emt 0:00:00]} Be6 {[%emt 0:00:00]} 9. Nc4 {[%emt 0:00:00]} Rc8 {[%emt 0:00:00]} 10. Nd5 {[%emt 0:00:13]} Bxd5 {[%emt 0:00:00]} 11. Bxf6 {[%emt 0:07:28]} gxf6 {[%emt 0:00:00]} 12. Qxd5 {[%emt 0:07:04]} Nd4 {[%emt 0:00:00]} 13. Ne3 {[%emt 0:42:08]} Qd7 {[%emt 0:00:40]} 14. Rd1 {[%emt 0:16:00]} Rc5 {[%emt 0:27:08]} 15. Rxd4 {[%emt 0:00:00]} Rxd5 {[%emt 0:01:45]} 16. Nxd5 {[%emt 0:00:11]} Be7 {[%emt 0:00:08]} 17. Rc4 {[%emt 0:00:37]} Bd8 {[%emt 0:00:17]} 18. Bd3 {[%emt 0:04:30]} Rg8 {[%emt 0:00:00]} 19. O-O {[%emt 0:00:19]} Qh3 {[%emt 0:03:53]} 20. g3 {[%emt 0:00:25]} h5 {[%emt 0:03:03]} 21. Re1 {[%emt 0:00:23]} h4 {[%emt 0:00:41]} 22. Bf1 {[%emt 0:00:00]} Qe6 {[%emt 0:01:24]} 23. Re3 {[%emt 0:02:41]} Rh8 {[%emt 0:03:29]} 24. Rec3 {[%emt 0:06:28]} hxg3 {[%emt 0:01:20]} 25. Rxg3 {[%emt 0:04:00]} f5 {[%emt 0:01:10]} 26. Bh3 {[%emt 0:01:27]} Rxh3 {[%emt 0:01:17]} 27. Rxh3 {[%emt 0:00:00]} fxe4 {[%emt 0:00:00]} 28. Rh8+ {[%emt 0:00:03]} Kd7 {[%emt 0:00:00]} 29. Ne3 {[%emt 0:00:10]} f5 {[%emt 0:00:00]} 30. Rc3 {[%emt 0:01:30]} f4 {[%emt 0:00:36]} 31. Ng2 {[%emt 0:00:52]} Qg6 {[%emt 0:01:01]} 32. Rch3 {[%emt 0:00:32]} Bb6 {[%emt 0:01:05]} 33. R8h7+ {[%emt 0:00:18]} Kc6 {[%emt 0:00:00]} 34. R7h6 {[%emt 0:00:26]} Qg4 {[%emt 0:00:31]} 35. Rc3+ {[%emt 0:00:00]} Kd5 {[%emt 0:00:19]} 36. Kf1 {[%emt 0:00:18]} Qd1+ {[%emt 0:00:00]} 37. Ne1 {[%emt 0:00:00]} f3 {[%emt 0:00:17]} 0-1

[Event "120th Taflfelag Reykjavik-A 2020"]
[Site "Reykjavik"]
[Date "2020.10.01"]
[Round "8.3"]
[White "Einarsson, Halldor Gretar"]
[Black "Kjartansson, David"]
[Result "1-0"]
[ECO "A48"]
[WhiteElo "2258"]
[BlackElo "2338"]
[Annotator "ChessBase"]
[PlyCount "85"]
[EventDate "2020.09.13"]
[EventType "tourn"]
[EventCountry "ISL"]
[SourceTitle "playchess.com"]
[Source "ChessBase"]
[SourceQuality "1"]
[TimeControl "40/5400+15:1800+30"]

1. d4 {[%emt 0:00:00]} Nf6 {[%emt 0:00:00]} 2. Nf3 {[%emt 0:00:29]} g6 {[%emt 0:00:32]} 3. Bf4 {[%emt 0:01:50]} Bg7 {[%emt 0:00:01]} 4. e3 {[%emt 0:00:14]} O-O {[%emt 0:00:36]} 5. Nc3 {[%emt 0:04:17]} d6 {[%emt 0:00:00]} 6. Qd2 {[%emt 0:03:32]} Nbd7 {[%emt 0:00:40]} 7. h3 {[%emt 0:09:16]} a6 {[%emt 0:01:18]} 8. a4 {[%emt 0:00:31]} c5 {[%emt 0:01:03]} 9. Be2 {[%emt 0:01:00]} b6 {[%emt 0:02:45]} 10. O-O {[%emt 0:00:40]} Bb7 {[%emt 0:00:00]} 11. d5 {[%emt 0:02:45]} Qc7 {[%emt 0:04:40]} 12. Bc4 {[%emt 0:00:44]} Rfd8 {[%emt 0:09:03]} 13. e4 {[%emt 0:02:42]} Ne8 {[%emt 0:03:28]} 14. Bh6 {[%emt 0:12:15]} Bh8 {[%emt 0:02:25]} 15. Ng5 {[%emt 0:00:16]} b5 {[%emt 0:05:12]} 16. axb5 {[%emt 0:12:36]} axb5 {[%emt 0:00:14]} 17. Nxb5 {[%emt 0:00:00]} Qb6 {[%emt 0:00:19]} 18. c3 {[%emt 0:06:03]} Ba6 {[%emt 0:01:24]} 19. Na3 {[%emt 0:00:29]} Bxc4 {[%emt 0:07:29]} 20. Nxc4 {[%emt 0:00:00]} Qb5 {[%emt 0:01:18]} 21. Ne3 {[%emt 0:05:48]} Rdb8 {[%emt 0:07:04]} 22. Rxa8 {[%emt 0:01:23]} Rxa8 {[%emt 0:00:00]} 23. f4 {[%emt 0:00:06]} Ra2 {[%emt 0:08:55]} 24. Rf2 {[%emt 0:03:08]} c4 {[%emt 0:07:05]} 25. Qe2 {[%emt 0:17:55]} Bxc3 {[%emt 0:02:27]} 26. Nf5 {[%emt 0:00:00]} Bf6 {[%emt 0:06:06]} 27. e5 {[%emt 0:00:00]} dxe5 {[%emt 0:07:09]} 28. fxe5 {[%emt 0:00:00]} Ra1+ {[%emt 0:02:49]} 29. Kh2 {[%emt 0:01:11]} Qb8 {[%emt 0:02:48]} 30. Nxe7+ {[%emt 0:03:12]} Bxe7 {[%emt 0:00:16]} 31. Nxf7 {[%emt 0:00:03]} Nef6 {[%emt 0:03:00]} 32. d6 {[%emt 0:00:43]} Bf8 {[%emt 0:03:52]} 33. Qxc4 {[%emt 0:00:17]} Bxh6 {[%emt 0:00:03]} 34. Nxh6+ {[%emt 0:00:53]} Kg7 {[%emt 0:02:11]} 35. exf6+ {[%emt 0:00:00]} Nxf6 {[%emt 0:00:00]} 36. Qd4 {[%emt 0:00:50]} Kxh6 {[%emt 0:00:00]} 37. Qf4+ {[%emt 0:00:01]} Kh5 {[%emt 0:01:04]} 38. Qxf6 {[%emt 0:02:10]} Ra6 {[%emt 0:01:05]} 39. Rd2 {[%emt 0:00:29]} Qb4 {[%emt 0:00:12]} 40. Rd4 {[%emt 0:00:00]} Qe1 {[%emt 0:00:00]} 41. g4+ {[%emt 0:16:01]} Kh6 {[%emt 0:15:07]} 42. Qf8+ {[%emt 0:00:15]} Kg5 {[%emt 0:00:03]} 43. Qf4+ {[%emt 0:17:26]} 1-0

[Event "120th Taflfelag Reykjavik-A 2020"]
[Site "Reykjavik"]
[Date "2020.10.01"]
[Round "8.4"]
[White "Thorfinnsson, Bragi"]
[Black "Sigfusson, Sigurdur"]
[Result "1-0"]
[ECO "A45"]
[WhiteElo "2427"]
[BlackElo "2276"]
[Annotator "ChessBase"]
[PlyCount "65"]
[EventDate "2020.09.13"]
[EventType "tourn"]
[EventCountry "ISL"]
[SourceTitle "playchess.com"]
[Source "ChessBase"]
[SourceQuality "1"]
[TimeControl "40/5400+15:1800+30"]

1. d4 {[%emt 0:00:53]} Nf6 {[%emt 0:00:00]} 2. Bf4 {[%emt 0:00:15]} g6 {[%emt 0:01:25]} 3. Nc3 {[%emt 0:00:11]} Bg7 {[%emt 0:00:29]} 4. Qd2 {[%emt 0:01:13]} c5 {[%emt 0:06:46]} 5. dxc5 {[%emt 0:03:33]} Qa5 {[%emt 0:02:16]} 6. e4 {[%emt 0:03:44]} Qxc5 {[%emt 0:07:57]} 7. Be2 {[%emt 0:03:55]} d6 {[%emt 0:05:37]} 8. Bh6 {[%emt 0:08:39]} Bxh6 {[%emt 0:01:10]} 9. Qxh6 {[%emt 0:00:00]} Be6 {[%emt 0:01:10]} 10. Nh3 {[%emt 0:02:15]} Bc4 {[%emt 0:08:32]} 11. Bxc4 {[%emt 0:03:23]} Qxc4 {[%emt 0:00:40]} 12. O-O-O {[%emt 0:00:08]} Nbd7 {[%emt 0:04:05]} 13. Nf4 {[%emt 0:01:35]} Rc8 {[%emt 0:02:59]} 14. Kb1 {[%emt 0:08:43]} Rc5 {[%emt 0:09:29]} 15. Rhe1 {[%emt 0:01:42]} b5 {[%emt 0:23:22]} 16. Nfd5 {[%emt 0:06:36]} b4 {[%emt 0:03:31]} 17. b3 {[%emt 0:05:01]} Nxd5 {[%emt 0:02:22]} 18. bxc4 {[%emt 0:00:14]} Nxc3+ {[%emt 0:00:00]} 19. Kc1 {[%emt 0:02:01]} Nf6 {[%emt 0:03:12]} 20. Rd5 {[%emt 0:05:43]} Rxc4 {[%emt 0:02:12]} 21. Ra5 {[%emt 0:00:36]} Rc7 {[%emt 0:01:19]} 22. f3 {[%emt 0:06:06]} Rg8 {[%emt 0:03:38]} 23. Qe3 {[%emt 0:02:01]} Kd7 {[%emt 0:00:08]} 24. Rxa7 {[%emt 0:00:17]} Rgc8 {[%emt 0:00:00]} 25. Rxc7+ {[%emt 0:02:13]} Rxc7 {[%emt 0:00:00]} 26. g4 {[%emt 0:01:24]} e5 {[%emt 0:00:37]} 27. h4 {[%emt 0:03:44]} Nxa2+ {[%emt 0:00:37]} 28. Kb2 {[%emt 0:00:59]} Nc3 {[%emt 0:00:00]} 29. Ra1 {[%emt 0:00:10]} Nb5 {[%emt 0:00:00]} 30. Qb6 {[%emt 0:01:27]} Na3 {[%emt 0:00:54]} 31. Qxb4 {[%emt 0:00:48]} Nxc2 {[%emt 0:00:27]} 32. Qb5+ {[%emt 0:01:40]} Ke6 {[%emt 0:00:26]} 33. Qb3+ {[%emt 0:15:07]} 1-0